Cogmind - Beta 10.1 @@@ ROGUE MODE // 2020.10.09 @ 16:27:18 Player: 3.14 Result: Self-destructed Performance ------------- Evolutions (8) 4000 Regions Visited (21) 4200 Robots Destroyed (255) 1275 Value Destroyed (11570) 11570 Prototype IDs (16) 320 Alien Tech Used (0) 0 Bonus (7723) 7723 TOTAL SCORE: 29088 Bonus ------- High Alert Combat Kills 1988 Follower Combat Kills 2039 Entered Garrisons 600 Used RIF Installer 1000 Network Hubs Disabled 200 Built Enhanced Grunts 300 Met R17 at Cetus 500 Met R17 at Research 2000 Friendly Fire -904 Cogmind --------- Core Integrity 893/1450 Matter 300/300 Energy 340/340 System Corruption 0% Temperature Cool (0) Movement Treading (165) Ox1 Location -2/Garrison Parts ------- > --- POWER (2) -------- Particle Reactor > --- PROPULSION (4) --- Biometal Heavy Treads > --- UTILITY (11) ----- Advanced Coolant Injector Large Storage Unit Large Storage Unit Large Storage Unit Advanced Targeting Computer Advanced Targeting Computer Advanced Target Analyzer Advanced Core Analyzer Armor Integrity Analyzer Layered Heavy Armor Plating > --- WEAPON (6) ------- Heavy Laser Phase Gun Heavy Machine Gun KE Penetrator Railgun Improved KE Penetrator > --- INVENTORY (22) --- Quantum Reactor Advanced Power Amplifier Advanced Heat Sink Advanced Cooling System Advanced Cooling System Matter Compressor (250) Experimental Matter Compressor (500) Advanced Signal Interpreter Advanced Weapon Cycler Improved Transmission Jammer Centrium Medium Armor Plating Centrium Medium Armor Plating Advanced Force Field Relay Coupler [NC] (30) System Backup Module Long-range Tractor Beam Enhanced Nova Cannon Heavy Machine Gun Heavy Machine Gun Heavy Machine Gun Shock Bomb Launcher Advanced Remote Datajack Peak State ------------ > --- POWER ------------ Reinforced Fission Core Quantum Reactor > --- PROPULSION ------- Biometal Heavy Treads Biometal Heavy Treads > --- UTILITY ---------- Advanced Cooling System Large Storage Unit Large Storage Unit Large Storage Unit Advanced Targeting Computer Advanced Targeting Computer Advanced Target Analyzer Advanced Core Analyzer Advanced Weapon Cycler Improved Transmission Jammer Centrium Medium Armor Plating > --- WEAPON ----------- Railgun Improved KE Penetrator Improved KE Penetrator Hypervelocity Railgun Hypervelocity Railgun Hypervelocity Railgun > --- INVENTORY -------- Quantum Reactor Centrium Heavy Treads Biometal Heavy Treads Matter Compressor Advanced Matter Compressor Advanced Signal Interpreter Armor Integrity Analyzer Centrium Medium Armor Plating Centrium Medium Armor Plating Centrium Medium Armor Plating Centrium Medium Armor Plating System Backup Module Long-range Tractor Beam Matter Neutralizer Railgun Railgun Railgun Hypervelocity Railgun Shock Bomb Launcher Improved Remote Datajack [Rating: 165] Favorites ----------- Power Micro Fission Core Engine Improved Ion Engine Power Core Micro Fission Core Reactor Particle Reactor Propulsion Light Treads Treads Light Treads Utility Large Storage Unit Device Advanced Cooling System Storage Large Storage Unit Processor Advanced Targeting Computer Hackware Relay Coupler [NC] Protection Centrium Medium Armor Plating Weapon Heavy Assault Rifle Energy Gun Heavy Laser Energy Cannon Enhanced Nova Cannon Ballistic Gun Heavy Assault Rifle Launcher Shock Bomb Launcher Special Weapon Remote Datajack Slashing Weapon Katana Special Melee Weapon Datajack Build | -11 -10 -10 -9 -9 -9 -9 -7 -7 -7 -6 -5 -4 -4 -4 -4 -4 -3 -2 -2 -2 -2 ------- Run | Scr Mat Min Mat Sto Gar Rec Fac Low Low Fac Fac Fac Ext Cet Arc Hub Res Res Gar Res Gar Slots Evolved 16 | . . . 2 . . . 4 . . 2 2 2 . . . . 2 2 . . . Power 1 | . . . . . . . . . . . 1 . . . . . . . . . . Propulsion 2 | . . . . . . . 2 . . . . . . . . . . . . . . Utility 9 | . . . 1 . . . 1 . . 2 1 1 . . . . 1 2 . . . Weapon 4 | . . . 1 . . . 1 . . . . 1 . . . . 1 . . . . Parts Attached 264 | 7 2 1 24 25 7 . 33 2 1 9 6 3 26 26 4 1 31 23 20 1 12 Power 20 | 1 . . 1 3 2 . 2 . . . 1 1 1 1 2 . 1 1 3 . . Engine 8 | 1 . . 1 3 2 . . . . . 1 . . . . . . . . . . Core 5 | . . . . . . . 2 . . . . 1 1 . . . 1 . . . . Reactor 7 | . . . . . . . . . . . . . . 1 2 . . 1 3 . . Propulsion 57 | 2 . . 6 12 2 . 8 . . 4 2 . 8 3 . 1 2 4 2 . 1 Treads 57 | 2 . . 6 12 2 . 8 . . 4 2 . 8 3 . 1 2 4 2 . 1 Leg . | . . . . . . . . . . . . . . . . . . . . . . Wheel . | . . . . . . . . . . . . . . . . . . . . . . Hover . | . . . . . . . . . . . . . . . . . . . . . . Flight . | . . . . . . . . . . . . . . . . . . . . . . Utility 78 | 2 2 . 7 . . . 10 1 1 3 1 1 4 6 . . 16 11 7 . 6 Device 24 | . . . 1 . . . 1 . . . 1 . 2 3 . . 3 6 3 . 4 Storage 21 | 2 2 . 6 . . . 3 . . . . . . . . . 6 1 1 . . Processor 10 | . . . . . . . . . . 2 . 1 . . . . 4 1 1 . 1 Hackware 2 | . . . . . . . 2 . . . . . . . . . . . . . . Protection 21 | . . . . . . . 4 1 1 1 . . 2 3 . . 3 3 2 . 1 Artifact . | . . . . . . . . . . . . . . . . . . . . . . Weapon 109 | 2 . 1 10 10 3 . 13 1 . 2 2 1 13 16 2 . 12 7 8 1 5 Energy Gun 6 | 1 . . 1 . . . . . . . . . . . . . . . 2 . 2 Energy Cannon 5 | . . . 1 . . . . . . . . . . 2 . . . 1 . 1 . Ballistic Gun 92 | 1 . 1 8 10 3 . 10 1 . 2 2 1 11 13 2 . 12 6 6 . 3 Ballistic Cannon . | . . . . . . . . . . . . . . . . . . . . . . Launcher 2 | . . . . . . . . . . . . . 1 1 . . . . . . . Special Weapon 1 | . . . . . . . . . . . . . 1 . . . . . . . . Impact Weapon . | . . . . . . . . . . . . . . . . . . . . . . Slashing Weapon 2 | . . . . . . . 2 . . . . . . . . . . . . . . Piercing Weapon . | . . . . . . . . . . . . . . . . . . . . . . Special Melee Weapon 1 | . . . . . . . 1 . . . . . . . . . . . . . . Unidentified Prototypes 12 | . . . 2 . . . 2 . . . . . . 3 . . 3 1 1 . . Parts Lost 15 | . . . 1 . 3 . . . . . . . . . . . 1 1 4 . 5 Power 1 | . . . . . . . . . . . . . . . . . . . . . 1 Propulsion 3 | . . . . . 1 . . . . . . . . . . . . . . . 2 Utility 2 | . . . . . . . . . . . . . . . . . 1 1 . . . Weapon 9 | . . . 1 . 2 . . . . . . . . . . . . . 4 . 2 Highest Loss Streak 3 | . . . 1 . 3 . . . . . . . . . . . 1 1 2 . 2 Average Slot Usage (%) 94 | . 100 100 100 98 99 100 99 100 100 100 100 100 99 88 89 89 89 89 85 86 85 Engine 4 | . 14 14 11 11 11 11 5 . . . 5 4 . . . . . . . . . Core 2 | . . . . . . . 1 7 7 6 5 5 10 8 . . 1 4 2 . . Reactor 2 | . . . . . . . . . . . . . . 1 9 10 6 4 5 8 8 Treads 17 | . 28 28 22 21 21 22 29 30 30 26 23 21 20 10 10 10 9 8 8 8 7 Device 3 | . . . 3 . . . 1 . . . 5 5 5 5 5 5 9 11 5 4 4 Storage 20 | . 28 28 29 33 33 33 22 23 23 20 17 15 15 15 15 15 14 13 13 13 13 Processor 9 | . . . . . . . . . . 13 11 15 15 15 15 15 14 17 19 21 21 Protection 3 | . . . . . . . 5 6 7 6 5 5 5 5 5 5 3 4 4 4 4 Energy Gun 1 | . 14 3 2 . . . . . . . . . . . . . . . 2 8 7 Ballistic Gun 26 | . 14 24 30 31 33 33 29 30 30 26 23 26 25 23 26 26 28 25 22 15 13 Naked Turns . | . . . . . . . . . . . . . . . . . . . . . . Heaviest Build 162 | 16 20 20 64 64 67 67 77 72 76 76 87 91 99 119 123 123 136 148 162 139 139 Greatest Support 160 | 40 40 40 40 40 43 43 83 83 83 93 96 96 133 160 160 160 160 160 160 120 135 Greatest Overweight (x) 1 | . . . 1 1 1 1 . . . . . . . . . . . . 1 1 1 Average Overweight (x) . | . . . . 1 1 1 . . . . . . . . . . . . . 1 . Largest Inventory Capacity 22 | 8 10 10 22 22 22 22 22 22 22 22 22 22 22 22 22 22 22 22 22 22 22 Average Capacity 21 | 5 8 10 19 22 22 22 21 22 22 22 22 22 22 22 22 22 22 22 22 22 22 Most Carried 22 | 5 9 10 22 22 22 22 22 22 22 22 22 22 22 22 22 22 22 22 22 22 22 Average Carried 20 | 3 6 9 18 21 21 21 21 22 22 20 21 20 21 21 22 21 21 21 21 22 21 Final Capacity 22 | 8 10 10 22 22 22 22 22 22 22 22 22 22 22 22 22 22 22 22 22 22 22 Final Carried 22 | 4 9 9 22 22 22 22 22 22 22 22 22 21 22 22 22 22 22 22 22 22 22 Class Distribution -------------------- 26% | Scavenger-Gunner 19% | Scavenger-Executioner 17% | Hauler-Gunner 12% | Scavenger-Tank 11% | Scavenger-Mutant 4% | Hauler-Executioner 3% | Mutant Dominant Class ---------------- Mutant | -10/Materials Mutant | -10/Mines Hauler-Gunner | -9/Materials Scavenger-Gunner | -9/Storage Hauler-Gunner | -9/Garrison Hauler-Gunner | -9/Recycling Scavenger-Tank | -7/Factory Scavenger-Tank | -7/Lower Caves Scavenger-Tank | -7/Lower Caves Scavenger-Gunner | -6/Factory Scavenger-Gunner | -5/Factory Scavenger-Gunner | -4/Factory Scavenger-Gunner | -4/Extension Scavenger-Gunner | -4/Cetus Scavenger-Gunner | -4/Archives Scavenger-Gunner | -4/Hub_04(d) Scavenger-Executioner | -3/Research Hauler-Executioner | -2/Research Scavenger-Executioner | -2/Garrison Scavenger-Executioner | -2/Research Scavenger-Mutant | -2/Garrison Resources | -11 -10 -10 -9 -9 -9 -9 -7 -7 -7 -6 -5 -4 -4 -4 -4 -4 -3 -2 -2 -2 -2 ----------- Run | Scr Mat Min Mat Sto Gar Rec Fac Low Low Fac Fac Fac Ext Cet Arc Hub Res Res Gar Res Gar Matter Collected 12176 | 274 30 27 776 1121 304 71 806 79 45 188 418 71 612 371 30 540 1442 1846 2005 . 1120 Remotely 377 | . . . . . . . . . . . . . . . . . . 142 . . 235 Salvage Created 15280 | 88 158 181 1187 1725 553 49 1027 77 . 192 274 71 1049 610 . 778 899 2639 2706 . 1017 Parts 706 | 2 13 15 72 97 34 7 53 3 . 7 14 5 45 15 . 30 44 125 84 . 41 Haulers Intercepted 16 | . 1 . 4 4 . . 2 . . . . . 2 . . . 1 2 . . . Recyclers Shooed 7 | . . . 2 2 . . 3 . . . . . . . . . . . . . . Parts Field Recycled . | . . . . . . . . . . . . . . . . . . . . . . Retrieved Matter . | . . . . . . . . . . . . . . . . . . . . . . Parts Self-Destructed 2 | . . . . . . . . 2 . . . . . . . . . . . . . Prevented . | . . . . . . . . . . . . . . . . . . . . . . Kills | -11 -10 -10 -9 -9 -9 -9 -7 -7 -7 -6 -5 -4 -4 -4 -4 -4 -3 -2 -2 -2 -2 ------- Run | Scr Mat Min Mat Sto Gar Rec Fac Low Low Fac Fac Fac Ext Cet Arc Hub Res Res Gar Res Gar Combat Hostiles Destroyed 204 | . 3 6 23 32 18 5 13 3 . 3 2 1 9 7 . 7 7 24 26 . 15 Guns 193 | . 2 6 21 32 18 5 12 3 . 3 2 1 9 . . 7 7 24 26 . 15 Cannons 1 | . . . . . . . . . . . . . . 1 . . . . . . . AOE 4 | . 1 . 2 . . . 1 . . . . . . . . . . . . . . Classes Destroyed 16 | 1 2 2 4 3 . 1 1 . . . . . 1 1 . . . . . . . Worker 3 | . . . 1 . . . . . . . . . . . . . . 2 . . . Builder 6 | . . . . 1 . . . . . . . . 1 . . 1 . 3 . . . Tunneler 2 | . . 1 . . . . . . . . . . . . . . 1 . . . . Hauler 16 | . 1 . 4 4 . . 2 . . . . . 2 . . . 1 2 . . . Recycler 14 | 1 1 . 2 1 . . 4 . . . 1 . 1 . . 1 1 1 . . . Operator 5 | . . . 1 . . . 1 . . . . . . . . 2 . 1 . . . Drone 5 | . . . . . . 5 . . . . . . . . . . . . . . . Watcher 4 | . . . 1 . . . 1 . . . . . . 1 . . . 1 . . . Swarmer 42 | . 3 3 10 . 8 . 3 3 . . . . . . . . . . 6 . 6 Grunt 83 | . . 3 7 21 7 . 6 . . . . . . . . 6 2 14 11 . 6 Brawler 2 | . . . . 1 1 . . . . . . . . . . . . . . . . Duelist 4 | . . . . 4 . . . . . . . . . . . . . . . . . Sentry 34 | . . . 6 6 2 . 3 . . 3 1 1 4 . . 1 2 2 3 . . Hunter 9 | . . . . . . . . . . . . . . 3 . . . 2 2 . 2 Programmer 15 | . . . . . . . 1 . . . 1 . 3 . . . 2 6 2 . . Behemoth 5 | . . . . . . . . . . . . . 1 . . . 1 . 2 . 1 Cetus Guard 4 | . . . . . . . . . . . . . . 4 . . . . . . . Savage 1 | . . . . . . . . . . . . . 1 . . . . . . . . Best Kill Streak 12 | 1 3 3 5 12 6 2 4 3 . 2 1 1 3 3 . 9 2 10 6 . 8 Combat Bots Only 11 | . 3 3 4 11 6 2 3 3 . 2 1 1 3 3 . 7 2 8 6 . 8 Max Kills in Single Turn 2 | 1 1 1 2 2 2 1 2 2 . 1 1 1 2 1 . 2 1 2 2 . 2 Gunslinging 1 | . . . 1 1 1 . . 1 . . . . . . . . . . 1 . 1 Exploded 2 | . 1 . 2 . . . 1 . . . . . . . . . . . . . . Melee . | . . . . . . . . . . . . . . . . . . . . . . Uniques/NPCs Destroyed 1 | . . . . . . . . . . . . . . 1 . . . . . . . A7 (-4/Cetus) Combat | -11 -10 -10 -9 -9 -9 -9 -7 -7 -7 -6 -5 -4 -4 -4 -4 -4 -3 -2 -2 -2 -2 -------- Run | Scr Mat Min Mat Sto Gar Rec Fac Low Low Fac Fac Fac Ext Cet Arc Hub Res Res Gar Res Gar Damage Taken 14207 | . 84 257 729 1212 721 . 767 154 . 170 71 101 400 620 . 570 211 1589 3981 . 2570 Core 1090 | . 25 55 121 154 41 . 50 . . 7 . . 31 25 . 24 . 90 308 . 159 Absorbed by Shields 770 | . . . . . . . . . . . . . 214 129 . . . . 427 . . Reduced by Siege Mode 286 | . . . . . . . . . . . . . . . . . . 19 194 . 73 Core Remaining (%) 84 | 100 . 68 . . . 21 . . 92 99 100 . . . . 93 100 . . . . Volleys Fired 564 | 4 10 16 68 81 28 12 34 5 . 7 6 3 22 27 . 14 15 40 135 1 36 Largest 6 | 2 2 2 3 3 3 3 4 4 . 4 4 5 5 3 . 5 6 6 6 2 6 Hottest 295 | 60 60 60 80 69 69 69 97 102 . 102 116 144 154 90 . 165 225 225 292 189 295 Shots Fired 1901 | 7 20 32 204 236 83 36 136 20 . 28 24 15 98 31 . 70 90 233 347 3 188 Gun 1871 | 7 20 32 204 236 83 36 136 20 . 28 24 15 95 6 . 70 90 232 347 2 188 Cannon 21 | . . . . . . . . . . . . . . 19 . . . 1 . 1 . Launcher 6 | . . . . . . . . . . . . . . 6 . . . . . . . Special 3 | . . . . . . . . . . . . . 3 . . . . . . . . Kinetic 1763 | 4 10 26 193 236 83 36 136 20 . 28 24 15 95 6 . 70 90 232 328 . 131 Thermal 80 | . . . . . . . . . . . . . . . . . . 1 19 3 57 Explosive . | . . . . . . . . . . . . . . . . . . . . . . Electromagnetic 55 | 3 10 6 11 . . . . . . . . . . 25 . . . . . . . Robot Hit Streak 77 | 2 7 7 15 18 14 2 18 5 . 8 23 24 25 25 . 8 20 39 77 . 34 Robot Miss Streak 8 | 3 1 4 4 3 3 8 6 2 . 4 1 2 2 2 . 1 2 2 2 . 2 Penetration Max 2 | . . . . . . . . . . . . . 2 . . 1 1 2 1 . 1 Secondary Targets 53 | . 1 1 4 7 7 . 2 1 . . . . . . . 2 1 6 12 . 9 Max Gunslinging Chain 2 | . 1 1 2 1 1 . 1 1 . . . . . . . 1 1 1 1 . 2 Shots Hit Robots 1370 | 3 16 19 145 179 55 7 93 12 . 23 19 10 71 21 . 34 63 155 291 . 154 Core Hits 598 | 2 9 15 52 69 22 6 40 5 . 16 9 3 41 10 . 25 29 79 116 . 50 Critical Hits 164 | . . . 1 1 . . 1 . . 1 . . 10 . . 4 19 56 54 . 17 Critical Kills 50 | . . . . . . . 1 . . 1 . . 2 . . 1 7 19 14 . 5 Critical Parts Destroyed 90 | . . . 1 1 . . . . . . . . 6 . . 3 6 34 29 . 10 Melee Attacks 11 | . . . . . . . 11 . . . . . . . . . . . . . . Impact . | . . . . . . . . . . . . . . . . . . . . . . Slashing 5 | . . . . . . . 5 . . . . . . . . . . . . . . Piercing . | . . . . . . . . . . . . . . . . . . . . . . Sneak Attacks 4 | . . . . . . . 4 . . . . . . . . . . . . . . Combat Hostiles . | . . . . . . . . . . . . . . . . . . . . . . Follow-up Attacks . | . . . . . . . . . . . . . . . . . . . . . . Damage Inflicted 26386 | 42 228 161 2084 2717 869 164 1252 85 . 439 406 194 2278 1326 . 1198 1036 3332 5782 . 2793 Guns 24355 | 35 161 153 1950 2701 869 125 1153 85 . 409 406 194 2251 74 . 1096 980 3138 5782 . 2793 Cannons 670 | . . . . . . . . . . . . . . 670 . . . . . . . Explosions 781 | . 64 . 33 . . . . . . . . . . 582 . 102 . . . . . Melee 35 | . . . . . . . 35 . . . . . . . . . . . . . . Ramming 545 | 7 3 8 101 16 . 39 64 . . 30 . . 27 . . . 56 194 . . . Kinetic 22890 | 22 74 142 1868 2701 869 125 1153 85 . 409 406 194 2251 74 . 1096 980 3138 5403 . 1900 Thermal 1510 | . 64 . 33 . . . . . . . . . . 141 . . . . 379 . 893 Explosive . | . . . . . . . . . . . . . . . . . . . . . . Electromagnetic 1406 | 13 87 11 82 . . . . . . . . . . 1111 . 102 . . . . . Impact . | . . . . . . . . . . . . . . . . . . . . . . Slashing 35 | . . . . . . . 35 . . . . . . . . . . . . . . Piercing . | . . . . . . . . . . . . . . . . . . . . . . Highest Corruption 6 | . . . . . . . 4 1 . . . . . . . . . 4 6 6 6 Average Corruption 3 | . . . . . . . 2 1 . . . . . . . . . 2 4 6 2 Corruption Purged 13 | . . . . . . . 3 1 . . . . . . . . . 3 . . 6 Effects 78 | . . . . . . . 6 . . . . . . . . . . 9 45 2 16 Message Errors 16 | . . . . . . . 2 . . . . . . . . . . . 8 . 6 Matter Fused 13 | . . . . . . . 2 . . . . . . . . . . 2 3 . 6 Heat Flow Errors 6 | . . . . . . . . . . . . . . . . . . . 4 . 2 Energy Discharges 6 | . . . . . . . . . . . . . . . . . . 1 5 . . Data Loss (minor) 5 | . . . . . . . 1 . . . . . . . . . . . 3 . 1 Data Loss (major) 3 | . . . . . . . . . . . . . . . . . . . 2 . 1 Misfires 1 | . . . . . . . . . . . . . . . . . . . . 1 . Targeting Errors 20 | . . . . . . . 1 . . . . . . . . . . 4 14 1 . Weapon Failures 8 | . . . . . . . . . . . . . . . . . . 2 6 . . Overload Shots . | . . . . . . . . . . . . . . . . . . . . . . Overflow Damage 79 | . . . 12 . . . 2 . . . . . . 5 . . . 60 . . . Projectiles . | . . . . . . . . . . . . . . . . . . . . . . Explosions 17 | . . . 12 . . . . . . . . . . 5 . . . . . . . Melee 62 | . . . . . . . 2 . . . . . . . . . . 60 . . . Knockbacks 11 | . . . 3 . . . 2 . . 1 . . . . . . 2 3 . . . Impact 11 | . . . 3 . . . 2 . . 1 . . . . . . 2 3 . . . Kinetic . | . . . . . . . . . . . . . . . . . . . . . . Secondary . | . . . . . . . . . . . . . . . . . . . . . . Self-Inflicted Damage 162 | . 29 . 35 . . . . . . . . . . . . 98 . . . . . Shots 3 | . 1 . 1 . . . . . . . . . . . . 1 . . . . . Rammed 48 | 2 2 2 7 1 . 6 8 . . 4 . . 4 . 1 . 4 7 . . . Targets Rammed 53 | 2 2 3 8 1 . 6 10 . . 4 . . 4 . 1 . 4 8 . . . Kicked . | . . . . . . . . . . . . . . . . . . . . . . Crushed 5 | . . 1 1 . . . 2 . . . . . . . . . . 1 . . . Highest Temperature 604 | 40 52 40 63 62 51 36 128 60 . 80 102 135 200 77 . 57 239 368 604 86 199 Average Temperature 68 | 23 25 17 13 15 14 12 41 28 . 35 46 70 70 44 . 9 60 119 160 60 122 Received Heat Transfer 2223 | . . 78 207 366 129 . 174 . . 54 . . 61 . . 138 18 180 638 . 180 Effects 9 | . . . . . . . . . . . . . . . . . . 1 8 . . Shutdowns 5 | . . . . . . . . . . . . . . . . . . 1 4 . . Energy Bleed 1 | . . . . . . . . . . . . . . . . . . . 1 . . Matter Decay 1 | . . . . . . . . . . . . . . . . . . . 1 . . Damage (minor) 1 | . . . . . . . . . . . . . . . . . . . 1 . . Damage (core) 1 | . . . . . . . . . . . . . . . . . . . 1 . . Siege Activations 9 | . . . . . . . . . . . . . . . . . 1 3 3 . 2 Total Turns 381 | . . . . . . . . . . . . . . . . . 9 211 70 . 91 Longest Duration 195 | . . . . . . . . . . . . . . . . . 9 195 39 . 50 Robots Corrupted 7 | . . . . . . . . . . . . . . 6 . 1 . . . . . Combat Hostiles 6 | . . . . . . . . . . . . . . 6 . . . . . . . Parts Fried 15 | . . . 1 . . . . . . . . . . 7 . 3 . 4 . . . Impact Corruptions 5 | . . . . . . . 1 . . . . . . . . . . 4 . . . Robots Melted . | . . . . . . . . . . . . . . . . . . . . . . Combat Hostiles . | . . . . . . . . . . . . . . . . . . . . . . Parts Melted 2 | . . . . . . . . . . . . . . . . . 1 . . . 1 Heat Transferred 2483 | . 100 . 100 . . . . . . . . . . 100 . . . . 703 . 1480 Parts Sabotaged . | . . . . . . . . . . . . . . . . . . . . . . Parts Stolen . | . . . . . . . . . . . . . . . . . . . . . . Parts Stripped . | . . . . . . . . . . . . . . . . . . . . . . Power Chain Reactions 3 | . 1 . 1 . . . . . . . . . . 1 . . . . . . . Missiles Intercepted . | . . . . . . . . . . . . . . . . . . . . . . Alert | -11 -10 -10 -9 -9 -9 -9 -7 -7 -7 -6 -5 -4 -4 -4 -4 -4 -3 -2 -2 -2 -2 ------- Run | Scr Mat Min Mat Sto Gar Rec Fac Low Low Fac Fac Fac Ext Cet Arc Hub Res Res Gar Res Gar Peak Influence 1119 | 5 148 212 254 922 1011 577 1030 . . 157 148 119 619 505 349 668 407 653 1119 647 815 Initial 912 | . 3 57 82 97 501 454 912 . . 37 76 72 . 264 164 51 350 128 489 629 485 Average 363 | 1 96 146 106 588 806 338 316 . . 72 103 62 228 343 314 139 305 252 858 644 520 Maximum Alert Level 4 | . . 1 1 3 3 2 3 . . . . . 2 2 1 2 2 2 4 2 3 Low Security (%) 39 | 100 100 91 87 8 . 31 70 . . 100 100 100 60 . 13 76 . 43 . . . Level 1 18 | . . 8 12 6 . 20 . . . . . . 2 63 86 21 92 35 . . . Level 2 26 | . . . . 53 31 48 . . . . . . 36 35 . 1 7 20 25 100 91 Level 3 14 | . . . . 31 68 . 29 . . . . . . . . . . . 66 . 8 Level 4 . | . . . . . . . . . . . . . . . . . . . 7 . . Level 5 . | . . . . . . . . . . . . . . . . . . . . . . High Security . | . . . . . . . . . . . . . . . . . . . . . . Max Security . | . . . . . . . . . . . . . . . . . . . . . . Squads Dispatched 39 | . . . 2 13 . . 6 . . 1 . . 2 . . 1 7 6 . 1 . Investigation 6 | . . . 1 2 . . . . . . . . 1 . . . 2 . . . . Extermination 5 | . . . . . . . 2 . . 1 . . . . . . . 2 . . . Reinforcement 20 | . . . 1 4 . . 4 . . . . . 1 . . 1 5 3 . 1 . Assault 5 | . . . . 4 . . . . . . . . . . . . . 1 . . . Garrison 3 | . . . . 3 . . . . . . . . . . . . . . . . . Intercept . | . . . . . . . . . . . . . . . . . . . . . . Construction Impeded 1 | . . . . . . . . . . . . . 1 . . . . . . . . Haulers Reinforced 2 | . . . . . . . 1 . . . . . . . . . . 1 . . . Stealth | -11 -10 -10 -9 -9 -9 -9 -7 -7 -7 -6 -5 -4 -4 -4 -4 -4 -3 -2 -2 -2 -2 --------- Run | Scr Mat Min Mat Sto Gar Rec Fac Low Low Fac Fac Fac Ext Cet Arc Hub Res Res Gar Res Gar Distress Signals 15 | . . . 3 2 . . . . . 1 . . 1 2 . 1 2 3 . . . Communications Jammed . | . . . . . . . . . . . . . . . . . . . . . . Distress Signals . | . . . . . . . . . . . . . . . . . . . . . . Times Spotted 337 | . 4 7 32 66 16 21 19 3 . 4 3 2 24 19 3 10 13 38 29 1 23 Peak Tracking Total 8 | . 3 3 5 5 8 5 4 3 . 3 2 1 4 5 1 5 4 7 7 . 8 Tactical Retreats 11 | . . . 1 2 1 . . . . . . . 1 . . . . . 2 . 4 Traps | -11 -10 -10 -9 -9 -9 -9 -7 -7 -7 -6 -5 -4 -4 -4 -4 -4 -3 -2 -2 -2 -2 ------- Run | Scr Mat Min Mat Sto Gar Rec Fac Low Low Fac Fac Fac Ext Cet Arc Hub Res Res Gar Res Gar Traps Triggered 16 | . . . 1 3 3 . . . . . . . . . . . . . 8 . 1 Indirectly . | . . . . . . . . . . . . . . . . . . . . . . Trap Hack Attempts . | . . . . . . . . . . . . . . . . . . . . . . Triggered . | . . . . . . . . . . . . . . . . . . . . . . Disarmed . | . . . . . . . . . . . . . . . . . . . . . . Reprogrammed . | . . . . . . . . . . . . . . . . . . . . . . Reused . | . . . . . . . . . . . . . . . . . . . . . . Traps Extracted . | . . . . . . . . . . . . . . . . . . . . . . Installed . | . . . . . . . . . . . . . . . . . . . . . . Triggered . | . . . . . . . . . . . . . . . . . . . . . . Machines | -11 -10 -10 -9 -9 -9 -9 -7 -7 -7 -6 -5 -4 -4 -4 -4 -4 -3 -2 -2 -2 -2 ---------- Run | Scr Mat Min Mat Sto Gar Rec Fac Low Low Fac Fac Fac Ext Cet Arc Hub Res Res Gar Res Gar Machines Disabled 27 | . . . . . 1 1 . . . . . . 3 2 1 15 . 2 1 . 1 Max in Single Turn 11 | . . . . . 1 1 . . . . . . . . . 11 . 1 1 . 1 Garrison Access 1 | . . . . . . . 1 . . . . . . . . . . . . . . Garrison Relay 2 | . . . . . 1 . . . . . . . . . . . . . 1 . . Network Hub 1 | . . . . . . . . . . . . . . . . 1 . . . . . Machines Sabotaged . | . . . . . . . . . . . . . . . . . . . . . . Garrisons Compromised . | . . . . . . . . . . . . . . . . . . . . . . Overloaded Fab Kills . | . . . . . . . . . . . . . . . . . . . . . . Fab Network Shutdowns . | . . . . . . . . . . . . . . . . . . . . . . Hacking | -11 -10 -10 -9 -9 -9 -9 -7 -7 -7 -6 -5 -4 -4 -4 -4 -4 -3 -2 -2 -2 -2 --------- Run | Scr Mat Min Mat Sto Gar Rec Fac Low Low Fac Fac Fac Ext Cet Arc Hub Res Res Gar Res Gar Machines Accessed 53 | . 6 . 6 9 . 8 6 . . . 1 1 8 2 . 2 1 2 . 1 . Terminals 40 | . 6 . 5 6 . 5 2 . . . 1 1 8 2 . 2 1 1 . . . Fabricators 2 | . . . . . . . 2 . . . . . . . . . . . . . . Repair Stations 3 | . . . . 2 . . 1 . . . . . . . . . . . . . . Recycling Units 3 | . . . . . . 3 . . . . . . . . . . . . . . . Scanalyzers 1 | . . . 1 . . . . . . . . . . . . . . . . . . Garrison Access 4 | . . . . 1 . . 1 . . . . . . . . . . 1 . 1 . Total Hacks 137 | . 20 . 18 19 . 17 22 . . . 2 3 19 5 . 6 2 3 . 1 . Successful 78 | . 12 . 12 9 . 8 17 . . . . 3 7 2 . 5 . 2 . 1 . Failed 58 | . 7 . 6 10 . 9 5 . . . 2 . 12 3 . 1 2 1 . . . Catastrophic 24 | . 3 . 2 5 . 2 2 . . . 1 . 6 2 . . 1 . . . . Database Lockouts 1 | . 1 . . . . . . . . . . . . . . . . . . . . Manual 72 | . 13 . 13 10 . 9 . . . . 2 2 11 6 . 6 . . . . . Terminals 102 | . 20 . 14 11 . 14 4 . . . 2 3 19 5 . 6 2 2 . . . Fabricators 3 | . . . . . . . 3 . . . . . . . . . . . . . . Repair Stations 20 | . . . . 6 . . 14 . . . . . . . . . . . . . . Recycling Units 3 | . . . . . . 3 . . . . . . . . . . . . . . . Scanalyzers 4 | . . . 4 . . . . . . . . . . . . . . . . . . Garrison Access 5 | . . . . 2 . . 1 . . . . . . . . . . 1 . 1 . Terminal Hacks 36 | . 9 . 6 3 . 5 2 . . . . 3 3 2 . 2 . 1 . . . Part Schematic 2 | . . . 1 . . 1 . . . . . . . . . . . . . . . Robot Analysis 2 | . 2 . . . . . . . . . . . . . . . . . . . . Prototype ID Bank 2 | . . . 1 . . 1 . . . . . . . . . . . . . . . Open Door 2 | . . . . 1 . . . . . . . . 1 . . . . . . . . Branch Access Points 3 | . . . 1 . . . 1 . . . . 1 . . . . . . . . . Terminal Index 3 | . 1 . . . . . . . . . . . . . . 1 . 1 . . . Unreport Threat 13 | . . . 2 2 . 3 1 . . . . 1 2 2 . . . . . . . Locate Traps 2 | . 2 . . . . . . . . . . . . . . . . . . . . Transport Status 1 | . 1 . . . . . . . . . . . . . . . . . . . . Recall Reinforcements 1 | . . . 1 . . . . . . . . . . . . . . . . . . Hauler Manifests 1 | . 1 . . . . . . . . . . . . . . . . . . . . Zone Layout 4 | . 2 . . . . . . . . . . 1 . . . 1 . . . . . Fabricator Hacks 1 | . . . . . . . 1 . . . . . . . . . . . . . . Load Schematic 1 | . . . . . . . 1 . . . . . . . . . . . . . . Repair Station Hacks 18 | . . . . 5 . . 13 . . . . . . . . . . . . . . Scan Component 10 | . . . . 3 . . 7 . . . . . . . . . . . . . . Repair 8 | . . . . 2 . . 6 . . . . . . . . . . . . . . Recycling Unit Hacks . | . . . . . . . . . . . . . . . . . . . . . . Scanalyzer 4 | . . . 4 . . . . . . . . . . . . . . . . . . Insert Component 2 | . . . 2 . . . . . . . . . . . . . . . . . . Analyze 2 | . . . 2 . . . . . . . . . . . . . . . . . . Garrison Access Hacks 4 | . . . . 1 . . 1 . . . . . . . . . . 1 . 1 . Unlock Access 3 | . . . . 1 . . . . . . . . . . . . . 1 . 1 . Seal Access 1 | . . . . . . . 1 . . . . . . . . . . . . . . Unauthorized Hacks 15 | . 3 . 2 . . 3 . . . . . . 4 . . 3 . . . . . Terminals 12 | . 3 . 2 . . . . . . . . . 4 . . 3 . . . . . Track 5 | . 3 . . . . . . . . . . . 1 . . 1 . . . . . Botnet 7 | . . . 2 . . . . . . . . . 3 . . 2 . . . . . Fabricators . | . . . . . . . . . . . . . . . . . . . . . . Repair Stations . | . . . . . . . . . . . . . . . . . . . . . . Recycling Units 3 | . . . . . . 3 . . . . . . . . . . . . . . . Tunnel 3 | . . . . . . 3 . . . . . . . . . . . . . . . Scanalyzers . | . . . . . . . . . . . . . . . . . . . . . . Garrison Access . | . . . . . . . . . . . . . . . . . . . . . . Data Cores Recovered 1 | . . . . . . . . . . . . . . . . . . 1 . . . Used 1 | . . . . . . . . . . . . . . . . . . 1 . . . Hacking Detections 43 | . 5 . 5 8 . 5 5 . . . 1 1 8 1 . 2 1 1 . . . Full Trace Events 2 | . . . . 1 . . . . . . . . 1 . . . . . . . . Feedback Events . | . . . . . . . . . . . . . . . . . . . . . . Feedback Blocked . | . . . . . . . . . . . . . . . . . . . . . . Robot Schematics Acquired . | . . . . . . . . . . . . . . . . . . . . . . Robots Built . | . . . . . . . . . . . . . . . . . . . . . . Matter . | . . . . . . . . . . . . . . . . . . . . . . Time . | . . . . . . . . . . . . . . . . . . . . . . Total Robot Build Rating . | . . . . . . . . . . . . . . . . . . . . . . Part Schematics Acquired 4 | . . . 3 . . 1 . . . . . . . . . . . . . . . Parts Built . | . . . . . . . . . . . . . . . . . . . . . . Matter . | . . . . . . . . . . . . . . . . . . . . . . Time . | . . . . . . . . . . . . . . . . . . . . . . Total Part Build Rating . | . . . . . . . . . . . . . . . . . . . . . . Parts Repaired 8 | . . . . 2 . . 6 . . . . . . . . . . . . . . Time 269 | . . . . 83 . . 186 . . . . . . . . . . . . . . Parts Recycled . | . . . . . . . . . . . . . . . . . . . . . . Recycled Matter . | . . . . . . . . . . . . . . . . . . . . . . Retrieved Matter . | . . . . . . . . . . . . . . . . . . . . . . Retrieved Components . | . . . . . . . . . . . . . . . . . . . . . . Parts Scanalyzed 2 | . . . 2 . . . . . . . . . . . . . . . . . . Part Schematics Acquired 2 | . . . 2 . . . . . . . . . . . . . . . . . . Parts Damaged . | . . . . . . . . . . . . . . . . . . . . . . Bothacking | -11 -10 -10 -9 -9 -9 -9 -7 -7 -7 -6 -5 -4 -4 -4 -4 -4 -3 -2 -2 -2 -2 ------------ Run | Scr Mat Min Mat Sto Gar Rec Fac Low Low Fac Fac Fac Ext Cet Arc Hub Res Res Gar Res Gar Used RIF Installer 2 | . . . . . 1 . . . . . . . . . . . . . . . 1 Hotswap 1 | . . . . . . . . . . . . . . . . . . . . . 1 Robots Hacked 1 | . . . . . . . 1 . . . . . . . . . . . . . . Non-combat 1 | . . . . . . . 1 . . . . . . . . . . . . . . Combat . | . . . . . . . . . . . . . . . . . . . . . . Robot Hacks Applied 6 | . . . . . . . 6 . . . . . . . . . . . . . . purge_threat 5 | . . . . . . . 5 . . . . . . . . . . . . . . formatsys_low 1 | . . . . . . . 1 . . . . . . . . . . . . . . Relay Couplers Released 9 | . . . . . 5 . . . . . . . . . . . . . 4 . . Machine Destruction 9 | . . . . . 5 . . . . . . . . . . . . . 4 . . Attached 2 | . . . . . . . 2 . . . . . . . . . . . . . . Robots Rewired 14 | . . . . . . . . . . . . . 14 . . . . . . . . Allies Hacked 2 | . . . . . . . . . . . . . 2 . . . . . . . . Hacks Repelled . | . . . . . . . . . . . . . . . . . . . . . . Allies | -11 -10 -10 -9 -9 -9 -9 -7 -7 -7 -6 -5 -4 -4 -4 -4 -4 -3 -2 -2 -2 -2 -------- Run | Scr Mat Min Mat Sto Gar Rec Fac Low Low Fac Fac Fac Ext Cet Arc Hub Res Res Gar Res Gar Total Allies 23 | . . . . 2 . . 1 . . . . . 15 5 . . . . . . . Largest Group 10 | . . . . 2 . . 1 . . . . . 10 6 4 . . . . . . Highest-Rated Group 593 | . . . . 62 . . 10 . . . . . 536 593 376 . . . . . . Highest-Rated Ally 156 | . . . . 31 . . 10 . . . . . 156 141 94 . . . . . . Total Orders 4 | . . . . . . . . . . . . . 1 2 1 . . . . . . STAY 2 | . . . . . . . . . . . . . 1 1 . . . . . . . ROAM 1 | . . . . . . . . . . . . . . . 1 . . . . . . FOLLOW 1 | . . . . . . . . . . . . . . 1 . . . . . . . Ally Attacks 294 | . . . . 68 . . . . . . . . 136 56 34 . . . . . . Total Damage 7637 | . . . . 1002 . . . . . . . . 3631 1806 1198 . . . . . . Kills 59 | . . . . 16 . . . . . . . . 27 12 4 . . . . . . Allies Corrupted . | . . . . . . . . . . . . . . . . . . . . . . Allies Melted . | . . . . . . . . . . . . . . . . . . . . . . Intel | -11 -10 -10 -9 -9 -9 -9 -7 -7 -7 -6 -5 -4 -4 -4 -4 -4 -3 -2 -2 -2 -2 ------- Run | Scr Mat Min Mat Sto Gar Rec Fac Low Low Fac Fac Fac Ext Cet Arc Hub Res Res Gar Res Gar Robot Analysis Total 2 | . 2 . . . . . . . . . . . . . . . . . . . . Derelict Logs Recovered 1 | . . . . . . . . . 1 . . . . . . . . . . . . Drone Launches . | . . . . . . . . . . . . . . . . . . . . . . Drone Recoveries . | . . . . . . . . . . . . . . . . . . . . . . Exploration | -11 -10 -10 -9 -9 -9 -9 -7 -7 -7 -6 -5 -4 -4 -4 -4 -4 -3 -2 -2 -2 -2 ------------- Run | Scr Mat Min Mat Sto Gar Rec Fac Low Low Fac Fac Fac Ext Cet Arc Hub Res Res Gar Res Gar Turns Passed 15323 | 107 363 123 1590 953 724 584 1650 378 230 274 376 118 1486 579 427 305 1149 1162 1195 55 1495 Spaces Moved 6185 | 51 202 44 729 311 328 296 607 208 95 145 214 63 750 207 66 153 670 478 411 22 135 Core 2 | 2 . . . . . . . . . . . . . . . . . . . . . Treads 6183 | 49 202 44 729 311 328 296 607 208 95 145 214 63 750 207 66 153 670 478 411 22 135 Legs . | . . . . . . . . . . . . . . . . . . . . . . Wheels . | . . . . . . . . . . . . . . . . . . . . . . Hover . | . . . . . . . . . . . . . . . . . . . . . . Flight . | . . . . . . . . . . . . . . . . . . . . . . Fastest Speed 50 | 50 160 160 160 180 180 180 160 160 160 160 160 160 160 160 160 160 145 145 160 190 157 Average Speed 165 | 155 160 160 176 180 180 180 160 160 160 160 160 160 160 160 160 160 151 150 181 190 173 Slowest Speed 190 | 160 160 160 180 180 180 180 160 160 160 160 160 160 160 160 160 160 160 160 190 190 190 Overloaded Moves . | . . . . . . . . . . . . . . . . . . . . . . Propulsion Burnouts . | . . . . . . . . . . . . . . . . . . . . . . Robots Hopped . | . . . . . . . . . . . . . . . . . . . . . . Cave-ins Triggered . | . . . . . . . . . . . . . . . . . . . . . . Exploration Rate (%) 34 | 5 39 14 57 55 49 76 20 47 13 4 6 3 89 62 70 24 23 14 52 1 28 Regions Visited 21 Branch Regions 9 Pre-discovered Areas 3 | . . . . . . 3 . . . . . . . . . . . . . . . Known Exits Taken 7 | . . . 1 1 . . 1 . . . . 1 . . . . 1 1 . 1 . Unknown Exits Taken 12 | 1 1 1 . . . 1 . 1 1 1 1 . 1 1 1 1 . . . . . Scrap Searched 5 | . . 1 . . . . . 1 3 . . . . . . . . . . . . Spaces Dug 5 | . . . . . . . 3 . . . . . . . . . . 1 . 1 . Terrain Destroyed 250 | . 4 . 4 . . . 3 . . . . . 8 14 . 166 . 5 37 1 8 Melee 3 | . . . . . . . 3 . . . . . . . . . . . . . . Projectile 73 | . . . . . . . . . . . . . 8 2 . 12 . 5 37 1 8 AOE 174 | . 4 . 4 . . . . . . . . . . 12 . 154 . . . . . Terrain Rammed . | . . . . . . . . . . . . . . . . . . . . . . Walls Destroyed . | . . . . . . . . . . . . . . . . . . . . . . Machines Disabled . | . . . . . . . . . . . . . . . . . . . . . . Actions | -11 -10 -10 -9 -9 -9 -9 -7 -7 -7 -6 -5 -4 -4 -4 -4 -4 -3 -2 -2 -2 -2 --------- Run | Scr Mat Min Mat Sto Gar Rec Fac Low Low Fac Fac Fac Ext Cet Arc Hub Res Res Gar Res Gar Total 10186 | 68 223 69 913 535 401 317 1192 242 174 174 239 73 995 434 389 176 767 836 643 32 1294 Wait 2595 | . 1 . 18 87 21 . 439 27 78 1 . . 43 142 315 5 10 257 41 8 1102 Move 6167 | 51 201 43 728 310 327 295 606 207 94 144 213 62 749 206 65 152 669 478 410 22 135 Hop . | . . . . . . . . . . . . . . . . . . . . . . Pick Up 163 | 5 5 3 33 6 7 2 35 . . 2 6 3 12 9 . 2 8 10 11 . 4 Fast Attach 56 | 6 . . 1 3 . . 6 . . . . . 2 9 1 . 10 8 8 . 2 Attach 50 | 1 . . 3 4 5 . 8 . . 2 2 3 . 6 . 1 2 7 4 . 2 Detach . | . . . . . . . . . . . . . . . . . . . . . . Swap 159 | . 2 1 20 18 2 . 19 2 1 7 4 . 24 11 3 . 20 8 8 1 8 Drop 239 | . 2 3 34 21 5 2 23 1 1 7 8 2 30 24 4 2 29 20 18 . 3 Fire 564 | 4 10 16 68 81 28 12 34 5 . 7 6 3 22 27 . 14 15 40 135 1 36 Melee 11 | . . . . . . . 11 . . . . . . . . . . . . . . Ram . | . . . . . . . . . . . . . . . . . . . . . . Kick . | . . . . . . . . . . . . . . . . . . . . . . Crush 52 | 1 2 3 8 1 . 6 10 . . 4 . . 4 . 1 . 4 8 . . . Escape Stasis 20 | . . . . 4 6 . . . . . . . . . . . . . 8 . 2 Rewire 110 | . . . . . . . 1 . . . . . 109 . . . . . . . . Trap . | . . . . . . . . . . . . . . . . . . . . . . Miscellaneous . | . . . . . . . . . . . . . . . . . . . . . . Route ------- -11/Scrapyard -10/Materials (discovered 2 exits: *Mat / [*Min]) -10/Mines -9/Materials (discovered 5 exits: [*Mat x2] / *Min / *Sto x2) -9/Storage -9/Garrison (discovered 2 exits: *Rec x2) -9/Recycling -7/Factory (discovered 2 exits: *Low x2) -7/Lower Caves -7/Lower Caves -6/Factory -5/Factory -4/Factory (discovered 4 exits: Upp x2 / *Ext x2) -4/Extension (discovered 2 exits: *Res / *Cet) -4/Cetus (discovered 2 exits: *Res / [*Arc]) -4/Archives -4/Hub_04(d) -3/Research -2/Research -2/Garrison -2/Research -2/Garrison History --------- Turn | Location | Event 13 | -11/Scrapyard | Discovered new exit (range 15) 108 | -11/Scrapyard | Entered Materials 269 | -10/Materials | Discovered new exit (range 5) 283 | -10/Materials | Discovered new exit (range 15) 302 | -10/Materials | Build established: Mutant 337 | -10/Materials | Central database locked down 471 | -10/Materials | Entered Mines 586 | -10/Mines | Discovered new exit (range 6) 594 | -10/Mines | Entered Materials 594 | -9/Materials | Evolved 2 slots: Utility x1, Weapon x1 892 | -9/Materials | Build established: Gunner 1069 | -9/Materials | Discovered new exit (range 13) 1366 | -9/Materials | Build established: Hauler-Gunner 1432 | -9/Materials | Discovered new exit (range 13) 1735 | -9/Materials | Identified exit to Mines 1735 | -9/Materials | Identified exit to Storage 1748 | -9/Materials | Discovered new exit (range 5) 2184 | -9/Materials | Entered Storage 2219 | -9/Storage | Met a pair of Derelict thieves 2584 | -9/Storage | First assault squad dispatched 2701 | -9/Storage | Build established: Scavenger-Gunner 2855 | -9/Storage | Repaired Imp. Assault Rifle 2888 | -9/Storage | Repaired Hvy. Assault Rifle 2889 | -9/Storage | Garrison activated, responded to threat 2917 | -9/Storage | Core integrity fell below 50% 2995 | -9/Storage | Garrison activated, responded to threat 3095 | -9/Storage | Destroyed 11 combat bots 3118 | -9/Storage | Identified exit to Garrison 3137 | -9/Storage | Entered Garrison 3194 | -9/Garrison | Triggered checkpoint 3281 | -9/Garrison | Lost 3 parts (1n2w) 3456 | -9/Garrison | Discovered new exit (range 11) 3533 | -9/Garrison | Build established: Hauler-Gunner 3616 | -9/Garrison | Discovered new exit (range 13) 3648 | -9/Garrison | Installed Relay Interface Framework 3704 | -9/Garrison | Triggered checkpoint 3738 | -9/Garrison | Garrison Relay disabled 3861 | -9/Garrison | Entered Recycling 3907 | -9/Recycling | Spotter reported a threat 3936 | -9/Recycling | Spotter reported a threat 3973 | -9/Recycling | Spotter reported a threat 3978 | -9/Recycling | Spotter reported a threat 3984 | -9/Recycling | Spotter reported a threat 4014 | -9/Recycling | Spotter reported a threat 4026 | -9/Recycling | Spotter reported a threat 4050 | -9/Recycling | Spotter reported a threat 4059 | -9/Recycling | Spotter reported a threat 4092 | -9/Recycling | Spotter reported a threat 4108 | -9/Recycling | Spotter reported a threat 4123 | -9/Recycling | Spotter reported a threat 4134 | -9/Recycling | Spotter reported a threat 4143 | -9/Recycling | Spotter reported a threat 4145 | -9/Recycling | Spotter reported a threat 4196 | -9/Recycling | Spotter reported a threat 4225 | -9/Recycling | Spotter reported a threat 4311 | -9/Recycling | Spotter reported a threat 4311 | -9/Recycling | Spotter reported a threat 4317 | -9/Recycling | Spotter reported a threat 4331 | -9/Recycling | Spotter reported a threat 4417 | -9/Recycling | Discovered new exit (range 12) 4445 | -9/Recycling | Entered Factory 4445 | -7/Factory | Evolved 4 slots: Propulsion x2, Utility x1, Weapon x1 4968 | -7/Factory | Identified exit to Lower Caves 4984 | -7/Factory | Build established: Scavenger-Tank 5118 | -7/Factory | Repaired Imp. Treads 5145 | -7/Factory | Repaired Lrg. Storage Unit 5192 | -7/Factory | Repaired Lrg. Storage Unit 5239 | -7/Factory | Repaired Lrg. Storage Unit 5293 | -7/Factory | Repaired Rocket Launcher 5338 | -7/Factory | Repaired Broken Rocket Launcher 6054 | -7/Factory | Build established: Scavenger-Gunner 6095 | -7/Factory | Entered Lower Caves 6391 | -7/Lower Caves | Encountered a Warlord checkpoint 6439 | -7/Lower Caves | Build established: Scavenger-Tank 6441 | -7/Lower Caves | Discovered new exit (range 14) 6473 | -7/Lower Caves | Entered another Lower Caves area 6647 | -7/Lower Caves | Discovered new exit (range 3) 6676 | -7/Lower Caves | Learned Factory stockpile data 6703 | -7/Lower Caves | Entered Factory 6703 | -6/Factory | Evolved 2 slots: Utility x2 6959 | -6/Factory | Discovered new exit (range 8) 6977 | -6/Factory | Entered another Factory area 6977 | -5/Factory | Evolved 2 slots: Power x1, Utility x1 6999 | -5/Factory | Build established: Scavenger-Gunner 7254 | -5/Factory | Discovered new exit (range 15) 7353 | -5/Factory | Entered another Factory area 7353 | -4/Factory | Evolved 2 slots: Utility x1, Weapon x1 7415 | -4/Factory | Discovered new exit (range 15) 7442 | -4/Factory | Identified exit to Upper Caves 7442 | -4/Factory | Identified exit to Extension 7471 | -4/Factory | Entered Extension 7880 | -4/Extension | Rescued A7 8296 | -4/Extension | Disrupted transfer network 8338 | -4/Extension | Spotted B-86 Titan 8357 | -4/Extension | Allies destroyed B-86 Titan 8365 | -4/Extension | Spotted B-86 Titan 8370 | -4/Extension | Destroyed B-86 Titan 8376 | -4/Extension | P-70 Sage assimilated allied 5Q-O5U(h) 8444 | -4/Extension | P-70 Sage assimilated allied 4E-87H(b) 8893 | -4/Extension | Discovered new exit (range 10) 8895 | -4/Extension | Discovered new exit (range 6) 8957 | -4/Extension | Entered Cetus 8957 | -4/Cetus | Accompanied by 1 ally (A7) 8962 | -4/Cetus | Acquired a Cetus Manufacturing Module code from A7 8978 | -4/Cetus | Spotted Cetus Guard 8978 | -4/Cetus | Spotted Cetus Guard 8984 | -4/Cetus | Spotted Cetus Guard 8985 | -4/Cetus | Allies destroyed Cetus Guard 8985 | -4/Cetus | Spotted Cetus Guard 8992 | -4/Cetus | Allies destroyed Cetus Guard 8992 | -4/Cetus | Destroyed Cetus Guard 8996 | -4/Cetus | Destroyed Cetus Guard 9119 | -4/Cetus | Started Cetus Manufacturing Module 9144 | -4/Cetus | Manufactured an Enhanced Grunt 9169 | -4/Cetus | Manufactured an Enhanced Grunt 9194 | -4/Cetus | Manufactured an Enhanced Grunt 9219 | -4/Cetus | Manufactured an Enhanced Grunt 9244 | -4/Cetus | Manufactured an Enhanced Grunt 9266 | -4/Cetus | Discovered new exit (range 15) 9353 | -4/Cetus | Spotted Cetus Guard 9353 | -4/Cetus | Spotted Cetus Guard 9362 | -4/Cetus | Allies destroyed Cetus Guard 9362 | -4/Cetus | Spotted Cetus Guard 9366 | -4/Cetus | Destroyed Cetus Guard 9366 | -4/Cetus | Spotted Cetus Guard 9371 | -4/Cetus | Destroyed Cetus Guard 9374 | -4/Cetus | Allies destroyed Cetus Guard 9388 | -4/Cetus | Discovered new exit (range 16) 9396 | -4/Cetus | Met Revision 17 9492 | -4/Cetus | Destroyed A7 9497 | -4/Cetus | Extracted ID and sensor layout for unrecognized location from A7's data core 9536 | -4/Cetus | Entered Archives 9536 | -4/Archives | Accompanied by 4 allies 9646 | -4/Archives | Discovered new exit (range 15) 9963 | -4/Archives | Entered Hub_04(d) 10239 | -4/Hub_04(d) | Discovered new exit (range 9) 10244 | -4/Hub_04(d) | Destroyed 7 combat bots 10264 | -4/Hub_04(d) | Network Hub disabled 10268 | -4/Hub_04(d) | Entered Research 10268 | -3/Research | Evolved 2 slots: Utility x1, Weapon x1 10468 | -3/Research | Revision forces began assault on 0b10 10496 | -3/Research | Met up with Revision 17++ 10562 | -3/Research | Build established: Scavenger-Executioner 10755 | -3/Research | Found Prototype Device 10755 | -3/Research | Identified Exp. Thermal Defense Suite 10916 | -3/Research | Spotted B-86 Titan 10929 | -3/Research | Destroyed B-86 Titan 10968 | -3/Research | Research terminal network offline 11301 | -3/Research | Discovered new exit (range 8) 11351 | -3/Research | Identified exit to Research 11417 | -3/Research | Entered another Research area 11417 | -2/Research | Evolved 2 slots: Utility x2 11774 | -2/Research | Build established: Hauler-Executioner 12169 | -2/Research | Destroyed 8 combat bots 12417 | -2/Research | First assault squad dispatched 12455 | -2/Research | Build established: Scavenger-Executioner 12579 | -2/Research | Identified exit to Garrison 12579 | -2/Research | Entered Garrison 12634 | -2/Garrison | Triggered checkpoint 12844 | -2/Garrison | Spotted B-90 Cyclops 12929 | -2/Garrison | Destroyed B-90 Cyclops 13071 | -2/Garrison | Triggered checkpoint 13239 | -2/Garrison | Spotted B-90 Cyclops 13260 | -2/Garrison | Destroyed B-90 Cyclops 13299 | -2/Garrison | Discovered new exit (range 14) 13634 | -2/Garrison | Triggered checkpoint 13661 | -2/Garrison | Garrison Relay disabled 13774 | -2/Garrison | Entered Research 13829 | -2/Research | Identified exit to Garrison 13829 | -2/Research | Entered Garrison 13839 | -2/Garrison | Expanded RIF knowledge: Hotswap 14107 | -2/Garrison | Build established: Scavenger-Mutant 15008 | -2/Garrison | Spotted B-90 Cyclops 15033 | -2/Garrison | Triggered checkpoint 15094 | -2/Garrison | Destroyed B-90 Cyclops 15251 | -2/Garrison | Destroyed 8 combat bots 15324 | -2/Garrison | Self-destructed Last Messages --------------- 15242_ Ended siege mode. 15245_ Acquired Hvy. Machine Gun. 15256_ Acquired 20 matter. 15271_ Slug penetrates G-73 Enforcer. 15274_ Arm. Heavy Treads destroyed. 15275_ Slug penetrates G-73 Enforcer. 15275_ G-73 Enforcer suffers critical hit. 15275_ Destroyed Adv. Heat Sink. 15275_ G-73 Enforcer destroyed. 15280_ Acquired Hvy. Laser. 15281_ Acquired 14 matter. 15286_ Dropped Hvy. Laser. 15299_ Acquired 35 matter. 15308_ Triggered Stasis Trap. 15308_ A bubble of rippling energy engulfs the area. 15308_ Field strength at 70. 15309_ Field strength at 40. 15310_ Field strength at 10. 15311_ Stasis field depleted. 15324_ Lgt. Quantum Reactor destroyed. Map ----- +----------------------------------------------------+ | ?????????????????????????????????????????????????? | | ?????????????????????????????????????????????????? | | ?????????????????????????????????????????????????? | | ?????????????????????????????????????????????????? | | ?????????????????????????????????????????????????? | | ?????????????????????????????????????????????????? | | ?????????????????????????????????????????????????? | | ?????????????????????????????????????????????????? | | ?????????????????????????????????????????????????? | | ?????????????????????????????????????????????????? | | ?????????????????????????? ??????????????????????? | | ????????????#######""""###s###???????????????????? | | ???????????? s ???????????????????? | | ???????????? s ???????????????????? | | ????????????? ????????????????????? | | ?????????????# ## #? #????????????????????? | | ???????????### ## ## ###??????????????????? | | ???????????# " C#??????????????????? | | ???????????# % #??????????????????? | | ???????????# C#??????????????????? | | ???????????? ???????????????????? | | ?????????????#== ## ## #????????????????????? | | ???###########%* ## ;# ##########???????????? | | ???#* = = *=%%*! ^ #???????????? | | ???#== ==*= ==! #???????????? | | ???# =########[ ^ ! @[ #####?# #???????????? | | ???# #??????##+### = #;*%##?????# #???????????? | | ???# #???????????#! = #; =#??????# #???????????? | | ???# #???????????######; #??????# #???????????? | | ???# #????????????????## ##### ## #???????????? | | ??? #?????????????????# ; ## #???????????? | | ??? #?????????????????# !;#### # #???????????? | | ??? ##??????????????????# !###????# #???????????? | | ??? ????????????????????#! ; ###### #???????????? | | ??# ????????????????????#] ! ##### #?????? | | ??# ????????????????????# =%= #?????? | | ??# ????????????????????###;##### # #######?????? | | ?? ???????????????????????# #????## #???????????? | | ??????????????????????????###?????# #???????????? | | ??????????????????????????????????# #???????????? | | ??????????????????????????????????# #???????????? | | ??????????????????????????????????# #???????????? | | ??????????????????????????????????# ############# | | ??????????????????????????????????# | | ??????????????????????????????????# | | ??????????????????????????????????############# | | ??????????????????????????????????????????????# | | ??????????????????????????????????????????????## # | | ??????????????????????????????????????????????#" " | | ??????????????????????????????????????????????#" " | +----------------------------------------------------+ Best States ------------- Heat Dissipation 80 Coolant Potential 100 Energy Generation 43 Energy Capacity 590 Matter Stores 300 Matter Capacity 300 Sight Range 16 Terrain Scan Density 10 Jamming Range 12 Armor Coverage 1200 Weapon Cycling 25 Evasion (%) 40 Targeting Accuracy 16 Target Analysis 8 Core Analysis 10 Armor Integrity Analysis 33 Recoil Reduction 4 Relay Coupler Types 11 Relay Coupler Value 1 Item Schematics ----------------- Hcp. Storage Unit | -9/Materials | Hacked Imp. Treads | -9/Materials | Scanalyzed Datajack | -9/Materials | Scanalyzed Lyr. Light Armor Plating | -9/Recycling | Hacked Robot Schematics ------------------ None Fabricated ------------ Nothing Alien Tech Used ----------------- None Achievements -------------- None Challenges ------------ None Game ------ Seed MiningHypercooledBroadsword Manual? 0 Play Time 01:26:15 Cumulative 647.6 hours Start 2020.10.09 @ 14:52:40 End 2020.10.09 @ 16:27:18 Sessions 1 Manual Loads 0 Difficulty Rogue Special Mode None Game No. 984 Rogue 984 Adventurer 0 Explorer 0 Win Type - Total 62 Types 38/1/8/11/4/0/0/0/0 Lore% 94 Gallery% 94 Achievement% 83 Wizard Run 0 Options --------- ASCII 1 Keyboard 0 Movement Numpad Keybinds 0 Fullscreen 0 Font 14/SmallcapsGlow Map View 76x50 Tactical HUD 1 Map Filters NONE Filters NONE Steam 1 RUN: 7c898705-7fe6-4578-bc0f-73e3569a14e7